bitfinex/quotes_SOLUSD_20240606
["timestamp","ask_amount","ask_price","bid_price","bid_amount"]
[1717651019935,12.8426,172.86,172.85,0.07975872]
[1717651020138,27.0944,172.86,172.85,0.07975872]
[1717651020737,27.4344,172.86,172.85,0.07975872]
[1717651024122,33.8486,172.86,172.85,0.07975872]
[1717651024326,94.7478,172.86,172.85,0.07975872]
[1717651025414,89.0578,172.86,172.85,0.07975872]
[1717651025618,21.4056,172.85,172.84,1.0357345]
[1717651025814,72.4356,172.85,172.84,1.11549322]
[1717651027147,72.4356,172.85,172.84,9.322e-05]
[1717651029141,72.4356,172.85,172.74,6.12940424]
[1717651029142,2.1417,172.76,172.74,6.12940424]
[1717651029822,7.8316,172.77,172.74,6.12940424]
[1717651030250,2.1417,172.76,172.74,6.12940424]
[1717651030562,7.8316,172.77,172.74,4.62940424]
[1717651030872,2.1419,172.75,172.7,2.1423]
[1717651031022,6.03,172.76,172.7,7.8323]
[1717651031348,7.8318,172.75,172.7,2.1423]
[1717651031653,2.1418,172.75,172.7,7.8323]
[1717651031823,4.2828,172.79,172.69,4.285]
[1717651032145,2.1416,172.77,172.73,5.69]
[1717651032315,2.1416,172.77,172.73,7.832]
[1717651032516,2.1416,172.77,172.73,5.69]
[1717651032727,2.1415,172.78,172.74,5.69]
[1717651032928,4.2828,172.79,172.74,5.69]
[1717651033144,2.1416,172.77,172.72,18.0068]
[1717651033445,2.1416,172.77,172.74,12.0932]
[1717651035540,2.1416,172.77,172.7,10.7121]
[1717651035541,5.69,172.78,172.69,6.6139]
[1717651035741,2.1419,172.75,172.72,5.69]
[1717651035921,2.1419,172.74,172.69,6.0041]
[1717651036127,2.1419,172.74,172.71,5.69]
[1717651036321,6.03,172.77,172.7,6.0041]
[1717651036518,2.1421,172.73,172.7,11.6941]
[1717651036936,2.1421,172.73,172.7,6.0041]
[1717651037155,2.142,172.74,172.7,11.6941]
[1717651038038,2.142,172.73,172.7,6.0041]
[1717651038573,2.142,172.74,172.7,6.0041]
[1717651038878,2.142,172.73,172.7,6.0041]
[1717651039567,16.3992,172.75,172.7,6.0041]
[1717651039736,2.142,172.73,172.69,5.69]
[1717651040168,2.142,172.73,172.68,8.7404]
[1717651040336,2.142,172.73,172.69,5.69]
[1717651041270,2.142,172.73,172.68,8.7404]
[1717651041271,0.17,172.74,172.68,6.1069]
[1717651041575,2.312,172.74,172.7,4.19]
[1717651041736,2.142,172.73,172.7,4.19]
[1717651041936,2.1419,172.74,172.71,5.69]
[1717651042346,2.1419,172.74,172.72,5.69]
[1717651042843,2.1419,172.74,172.69,8.8001]
[1717651043071,2.1419,172.74,172.71,5.69]
[1717651043241,2.1421,172.73,172.69,6.6576]
[1717651043446,2.1421,172.73,172.7,5.69]
[1717651043655,2.142,172.74,172.7,5.69]
[1717651044540,2.4818,172.75,172.71,5.69]
[1717651044742,16.398,172.77,172.71,5.69]
[1717651044965,2.1419,172.74,172.71,5.69]
[1717651045956,2.1419,172.74,172.7,6.2699]
[1717651046162,2.142,172.73,172.7,11.9599]
[1717651046372,2.142,172.74,172.7,5.69]
[1717651046668,2.142,172.73,172.68,2.1426]
[1717651046840,2.1421,172.73,172.68,2.1426]
[1717651047043,2.1421,172.73,172.69,5.69]
[1717651048067,2.482,172.74,172.69,5.69]
[1717651048278,2.142,172.73,172.69,5.69]
[1717651048450,2.482,172.74,172.69,5.69]
[1717651048652,2.482,172.74,172.7,5.69]
[1717651048958,0.34,172.74,172.7,5.69]
[1717651049269,2.142,172.73,172.7,5.69]
[1717651050270,2.142,172.73,172.68,2.1426]
[1717651050659,2.142,172.73,172.69,5.69]
[1717651051270,2.142,172.74,172.69,5.69]
[1717651051574,2.142,172.74,172.7,5.69]
[1717651052569,2.1419,172.74,172.7,5.69]
[1717651053664,2.3121,172.73,172.68,5.69]
[1717651053971,0.17,172.72,172.68,5.69]
[1717651054177,2.1421,172.73,172.69,5.69]
[1717651054550,2.142,172.74,172.69,5.69]
[1717651054766,2.142,172.74,172.69,7.8325]
[1717651055272,2.4818,172.75,172.69,7.8325]
[1717651055460,2.1418,172.75,172.71,5.69]
[1717651055851,2.1419,172.74,172.69,2.1424]
[1717651056162,2.1419,172.74,172.7,5.69]
[1717651057180,2.1421,172.73,172.7,5.69]
[1717651057467,2.142,172.74,172.69,5.69]
[1717651057676,10.1437,172.75,172.68,2.1426]
[1717651057677,2.142,172.73,172.68,2.1426]
[1717651057859,2.142,172.73,172.7,5.69]
[1717651058049,2.142,172.74,172.7,5.69]
[1717651058249,2.142,172.73,172.7,5.69]
[1717651058870,2.1419,172.74,172.7,5.69]
[1717651059879,2.142,172.73,172.69,7.8325]
[1717651060072,2.142,172.73,172.69,5.69]
[1717651061260,2.1423,172.71,172.66,2.96]
[1717651061576,2.1423,172.71,172.67,5.69]
[1717651062678,2.1423,172.71,172.68,5.69]
[1717651062873,2.3122,172.72,172.68,5.69]
[1717651063361,2.1423,172.71,172.68,5.69]
[1717651065967,2.1423,172.71,172.69,5.69]
[1717651066866,2.1422,172.72,172.7,5.69]
[1717651067887,2.1423,172.71,172.69,5.69]
[1717651069167,5.69,172.74,172.66,6.8461]
[1717651069374,2.1425,172.7,172.68,5.69]
[1717651070382,2.1423,172.71,172.68,5.69]
[1717651071486,2.1423,172.71,172.69,5.69]
[1717651071782,2.1422,172.72,172.69,5.69]
[1717651072486,2.1423,172.71,172.69,5.69]
[1717651072679,10.7097,172.74,172.66,0.8172]
[1717651072680,2.1424,172.7,172.66,0.8172]
[1717651072976,2.1424,172.7,172.66,0.3172]
[1717651073169,2.1423,172.71,172.68,5.69]
[1717651074659,2.1423,172.71,172.66,2.4601]
[1717651074861,2.1423,172.71,172.68,5.69]
[1717651075380,2.1423,172.71,172.67,5.69]
[1717651075681,2.1423,172.71,172.68,5.69]
[1717651075893,2.1423,172.71,172.66,2.4601]
[1717651076185,2.1424,172.7,172.68,5.69]
[1717651076563,2.1424,172.7,172.67,5.69]
[1717651076881,2.1423,172.71,172.66,2.4601]
[1717651077090,2.1423,172.71,172.67,5.69]
[1717651078171,2.1423,172.71,172.67,7.8328]
[1717651078562,14.9939,172.74,172.67,7.8328]
[1717651078563,2.1422,172.72,172.68,5.69]
[1717651079282,2.1422,172.72,172.68,7.8326]
[1717651079583,2.1422,172.72,172.68,5.69]
[1717651079966,2.1422,172.72,172.69,5.69]
[1717651080874,2.1423,172.71,172.68,5.69]
[1717651081669,2.1423,172.71,172.67,5.69]
[1717651081872,2.1423,172.71,172.67,7.8327]
[1717651082474,2.1423,172.71,172.66,2.46]
[1717651082674,2.1423,172.71,172.68,5.69]
[1717651083699,2.1422,172.72,172.68,5.69]
[1717651084581,2.1423,172.71,172.68,5.69]
[1717651085596,2.1422,172.72,172.68,5.69]
[1717651087190,15.5445,172.79,172.67,2.1427]
[1717651087191,6.92556057,172.8,172.67,8.5712]
[1717651087492,22.7732,172.78,172.66,0.3172]
[1717651087670,5.69,172.7,172.66,0.3172]
[1717651087870,2.1426,172.68,172.66,0.3172]
[1717651088070,4.2849,172.7,172.66,0.3172]
[1717651088383,2.1428,172.67,172.66,0.3172]
[1717651088780,2.4828,172.67,172.66,0.3172]
[1717651088978,2.1428,172.67,172.66,0.3172]
[1717651089194,2.1427,172.68,172.66,0.3172]
[1717651089502,2.1428,172.67,172.66,0.3172]
[1717651089797,0.34,172.67,172.66,0.3172]
[1717651090276,2.1428,172.67,172.66,0.3172]
[1717651090696,2.1427,172.68,172.66,0.3172]
[1717651091280,2.1428,172.67,172.66,0.3172]
[1717651092002,2.1427,172.68,172.66,0.3172]
[1717651096980,0.34,172.69,172.66,0.3172]
[1717651097193,2.1426,172.69,172.66,6.0072]
[1717651097401,2.1424,172.7,172.67,5.69]
[1717651097698,24.9688,172.73,172.67,5.69]
[1717651097699,2.1423,172.71,172.67,5.69]
[1717651098078,2.1424,172.7,172.67,5.69]
[1717651098278,16.4239,172.77,172.68,5.69]
[1717651098279,2.1422,172.72,172.68,5.69]
[1717651098790,2.1421,172.73,172.69,5.69]
[1717651098977,4.2829,172.78,172.72,5.69]
[1717651099176,2.1418,172.75,172.72,5.69]
[1717651099980,2.1418,172.75,172.71,5.69]
[1717651100309,2.1417,172.76,172.72,5.69]
[1717651103504,2.1417,172.76,172.71,2.1423]
[1717651103684,2.1417,172.76,172.72,5.69]
[1717651104196,2.1418,172.75,172.72,5.69]
[1717651104397,2.1417,172.76,172.72,5.69]
[1717651107808,2.3116,172.77,172.72,7.8321]
[1717651108000,2.1416,172.77,172.72,13.9779]
[1717651108201,2.1416,172.77,172.73,5.69]
[1717651108426,2.1414,172.78,172.75,5.69]
[1717651108796,4.2821,172.82,172.75,8.7825]
[1717651109090,4.2821,172.82,172.77,5.69]
[1717651109091,2.1412,172.8,172.77,5.69]
[1717651109294,2.1411,172.81,172.77,5.69]
[1717651109804,4.2817,172.83,172.78,5.69]
[1717651109805,2.1412,172.8,172.78,5.69]
[1717651110006,10.7041,172.83,172.78,5.69]
[1717651110207,2.1411,172.81,172.78,5.69]
[1717651110411,2.1412,172.8,172.78,5.69]
[1717651110710,2.1411,172.81,172.78,5.69]
[1717651111188,2.1411,172.81,172.76,2.1416]
[1717651111189,2.1413,172.79,172.76,6.0908]
[1717651111395,2.1413,172.79,172.77,5.69]
[1717651111603,2.1413,172.79,172.76,11.7808]
[1717651111801,16.3947,172.82,172.76,11.7808]
[1717651111802,2.1412,172.8,172.76,11.7808]
[1717651111989,2.1412,172.8,172.77,5.69]
[1717651112927,2.1412,172.8,172.76,6.0908]
[1717651113107,2.1413,172.79,172.76,11.7808]
[1717651113827,2.1412,172.8,172.76,11.7808]
[1717651114010,2.1412,172.8,172.77,5.69]
[1717651114401,2.1412,172.8,172.76,11.7808]
[1717651115014,2.1413,172.79,172.76,11.7808]
[1717651115400,5.69,172.78,172.72,5.69]
[1717651115727,7.8315,172.78,172.73,2.142]
[1717651116420,2.1415,172.77,172.73,5.69]
[1717651116620,2.1415,172.77,172.72,7.8321]
[1717651119028,5.69,172.78,172.72,5.69]
[1717651119204,2.1417,172.76,172.71,7.8322]
[1717651120316,10.1432,172.77,172.7,6.1321]
[1717651120520,6.4267,172.72,172.66,0.3172]
[1717651120712,7.8326,172.69,172.66,0.3172]
[1717651121115,2.1426,172.69,172.66,0.3172]
[1717651121927,2.1426,172.68,172.66,0.3172]
[1717651122224,2.1426,172.69,172.66,0.3172]
[1717651124524,2.1427,172.68,172.66,0.3172]
[1717651126430,2.1426,172.69,172.66,0.3172]
[1717651126636,2.1426,172.69,172.66,6.0072]
[1717651126820,2.1427,172.68,172.66,6.0072]
[1717651127821,2.1426,172.69,172.66,6.0072]
[1717651130242,2.1427,172.68,172.66,6.0072]
[1717651131054,2.1427,172.68,172.66,0.3172]
[1717651131346,4.2849,172.7,172.66,6.0072]
[1717651132032,2.1425,172.69,172.66,6.0072]
[1717651132338,2.1425,172.69,172.67,5.69]
[1717651132518,2.1425,172.69,172.66,6.0072]
[1717651132721,2.1425,172.69,172.67,5.69]
[1717651133118,2.1426,172.68,172.67,5.69]
[1717651133535,2.1426,172.69,172.67,5.69]
[1717651134344,19.2803,172.72,172.66,0.3172]
[1717651134537,2.1425,172.7,172.68,5.69]
[1717651134835,2.1425,172.69,172.68,5.69]
[1717651135621,2.1425,172.69,172.67,5.69]
[1717651136335,2.1426,172.69,172.66,0.3172]
[1717651136548,2.1427,172.68,172.66,6.0072]
[1717651136844,2.1426,172.69,172.66,6.0072]
[1717651137046,2.1426,172.69,172.66,0.3172]
[1717651137225,2.1426,172.68,172.66,0.3172]
[1717651137869,2.1426,172.69,172.66,0.3172]
[1717651138628,2.1426,172.69,172.66,6.0072]
[1717651139044,2.1427,172.68,172.66,0.3172]
[1717651142956,2.1426,172.69,172.66,0.3172]
[1717651143462,14.994,172.74,172.67,5.69]
[1717651143638,14.994,172.74,172.68,5.69]
[1717651143639,2.1422,172.72,172.68,5.69]
[1717651144350,24.968,172.74,172.68,5.69]
[1717651144853,10.711,172.72,172.67,5.69]
[1717651145053,16.7416,172.71,172.66,0.3172]
[1717651145227,2.1426,172.69,172.66,0.3172]
[1717651146747,2.4823,172.71,172.66,2.46]
[1717651146936,0.34,172.71,172.67,5.69]
[1717651147133,2.1424,172.71,172.67,5.69]
[1717651147535,2.1424,172.7,172.66,0.3172]
[1717651147849,0.17,172.69,172.66,0.3172]
[1717651148147,2.3126,172.69,172.66,0.3172]
[1717651148350,0.17,172.69,172.66,0.3172]
[1717651150240,2.3125,172.69,172.66,0.3172]
[1717651151254,2.1425,172.69,172.66,0.3172]
[1717651152852,2.1425,172.7,172.66,0.3172]
[1717651153553,2.1425,172.69,172.66,0.3172]
[1717651155363,2.1425,172.7,172.66,0.3172]
[1717651156158,2.1425,172.7,172.67,5.69]
[1717651156329,2.1425,172.7,172.66,0.3172]
[1717651156531,2.1425,172.69,172.67,5.69]
[1717651157050,2.1424,172.7,172.66,6.0072]
[1717651157957,2.1424,172.7,172.66,0.3172]
[1717651158256,2.1424,172.7,172.66,6.0072]
[1717651158966,2.1424,172.7,172.67,5.69]
[1717651159136,2.1425,172.69,172.67,5.69]
[1717651160743,2.1425,172.69,172.66,6.0072]
[1717651161457,2.1425,172.69,172.66,0.3172]
[1717651162059,2.1425,172.69,172.66,6.0072]
[1717651163059,2.1427,172.68,172.66,6.0072]
[1717651163258,2.1427,172.68,172.66,0.3172]
[1717651164358,2.1426,172.69,172.66,0.3172]
[1717651165985,6.4284,172.67,172.66,0.3172]
[1717651166270,2.4828,172.67,172.66,0.3172]
[1717651167139,2.1428,172.67,172.66,0.3172]
[1717651167647,6.7684,172.67,172.66,0.3172]
[1717651167849,2.4828,172.67,172.66,0.3172]
[1717651169041,11.054,172.67,172.66,0.3172]
[1717651169254,21.768,172.67,172.66,0.3172]
[1717651170355,2.4828,172.67,172.66,0.3172]
[1717651170556,2.1428,172.67,172.66,0.3172]
[1717651170750,2.1427,172.68,172.66,0.3172]
[1717651171155,21.598,172.67,172.66,0.3172]
[1717651171368,6.7684,172.67,172.66,0.3172]
[1717651172164,2.4828,172.67,172.66,0.3172]
[1717651173248,6.7684,172.67,172.66,0.3172]
[1717651174974,2.4828,172.67,172.66,0.3172]
[1717651179470,2.1428,172.67,172.66,0.3172]
[1717651179776,2.1427,172.68,172.66,0.3172]
[1717651179984,2.3126,172.69,172.66,0.3172]
[1717651180276,2.3126,172.69,172.66,6.0072]
[1717651180867,2.1426,172.69,172.66,6.0072]
[1717651181858,2.1427,172.68,172.66,6.0072]
[1717651182550,2.1426,172.69,172.66,6.0072]
[1717651184081,2.1426,172.69,172.67,5.69]
[1717651184272,2.1426,172.68,172.67,5.69]
[1717651184779,2.1428,172.67,172.66,0.3172]
[1717651184953,2.1428,172.67,172.66,6.0072]
[1717651185369,2.1427,172.68,172.66,6.0072]
[1717651187382,2.1428,172.67,172.66,0.3172]
[1717651187684,6.5984,172.67,172.66,0.3172]
[1717651187887,6.7684,172.67,172.66,0.3172]
[1717651192079,2.4828,172.67,172.66,0.3172]
[1717651194173,2.3128,172.67,172.66,0.3172]
[1717651194485,2.1428,172.67,172.66,0.3172]
[1717651200390,6.4273,172.7,172.66,0.3172]
[1717651200687,2.1426,172.69,172.66,0.3172]
[1717651200860,2.1426,172.68,172.67,5.69]
[1717651201065,2.1428,172.67,172.66,6.0072]
[1717651201766,2.1428,172.67,172.66,0.3172]
[1717651207092,2.3128,172.67,172.66,0.3172]
[1717651207494,2.1428,172.67,172.66,0.3172]
[1717651210993,2.1427,172.68,172.66,0.3172]
[1717651213406,2.1428,172.67,172.66,0.3172]
[1717651214986,2.1427,172.68,172.66,0.3172]
[1717651215421,2.1428,172.67,172.66,0.3172]
[1717651219310,37.80663243,172.74,172.67,2.1427]
[1717651219510,0.34,172.73,172.66,6.0072]
[1717651219728,2.1423,172.71,172.66,6.579]
[1717651219890,2.1423,172.71,172.68,5.69]
[1717651220090,2.1423,172.71,172.67,5.69]
[1717651220510,2.1423,172.71,172.68,5.69]
[1717651220712,2.1423,172.71,172.67,5.69]
[1717651221806,2.142,172.73,172.68,57.0836]
[1717651222007,2.1422,172.72,172.68,6.3936]
[1717651222319,2.1422,172.72,172.68,12.0836]
[1717651222693,2.1422,172.72,172.68,6.3936]
[1717651223301,2.1423,172.71,172.68,6.3936]
[1717651223497,2.1422,172.72,172.67,5.69]
[1717651223718,2.1422,172.72,172.66,2.46]
[1717651223911,2.1422,172.72,172.67,5.69]
[1717651224111,2.1425,172.7,172.66,0.3172]
[1717651224301,7.8326,172.69,172.66,0.3172]
[1717651225214,2.1426,172.69,172.66,0.3172]
[1717651226013,2.1424,172.7,172.66,0.3172]
[1717651226899,2.1426,172.69,172.66,0.3172]
[1717651227101,2.1425,172.7,172.66,12.4036]
[1717651228225,2.1425,172.69,172.66,12.4036]
[1717651228735,2.1427,172.68,172.66,0.3172]
[1717651228905,2.1426,172.69,172.66,0.3172]
[1717651229407,2.1426,172.69,172.66,6.0072]
[1717651229602,2.1426,172.69,172.66,0.3172]
[1717651230420,2.1426,172.69,172.66,6.0072]
[1717651231226,2.1426,172.69,172.66,0.3172]
[1717651231411,2.1426,172.69,172.66,6.0072]
[1717651232002,2.1426,172.68,172.66,0.3172]
[1717651232418,2.1428,172.67,172.66,0.3172]
[1717651232815,12.2884,172.67,172.66,0.3172]
[1717651233423,6.5984,172.67,172.66,0.3172]
[1717651233830,2.1428,172.67,172.66,0.3172]
[1717651234028,14.9975,172.7,172.66,0.3172]
[1717651234029,2.1427,172.68,172.66,0.3172]
[1717651236316,2.1428,172.67,172.66,0.3172]
[1717651236910,2.1427,172.68,172.66,0.3172]
[1717651238831,2.1428,172.67,172.66,0.3172]
[1717651239136,2.1427,172.68,172.66,0.3172]
[1717651239512,5.69,172.71,172.66,0.3172]
[1717651239719,2.1426,172.69,172.66,0.3172]
[1717651240112,2.1427,172.68,172.66,0.3172]
[1717651243331,2.1428,172.67,172.66,0.3172]
[1717651243555,27.458,172.67,172.66,0.3172]
[1717651245216,21.768,172.67,172.66,0.3172]
[1717651245539,27.458,172.67,172.66,0.3172]
[1717651245741,18.8868,172.67,172.66,0.3172]
[1717651247423,6.7684,172.67,172.66,0.3172]
[1717651247630,12.1184,172.67,172.66,0.3172]
[1717651248026,6.4284,172.67,172.66,0.3172]
[1717651248747,12.1184,172.67,172.66,0.3172]
[1717651249045,6.4284,172.67,172.66,0.3172]
[1717651249248,12.1184,172.67,172.66,0.3172]
[1717651250419,18.5468,172.67,172.66,0.3172]
[1717651250621,18.8868,172.67,172.66,0.3172]
[1717651252244,27.458,172.67,172.66,0.3172]
[1717651255039,21.768,172.67,172.66,0.3172]
[1717651258349,27.458,172.67,172.66,0.3172]
[1717651269767,21.598,172.67,172.66,0.3172]
[1717651269945,27.288,172.67,172.66,0.3172]
[1717651270265,27.458,172.67,172.66,0.3172]
[1717651271466,21.768,172.67,172.66,0.3172]
[1717651271667,27.458,172.67,172.66,0.3172]
[1717651272370,21.768,172.67,172.66,0.3172]
[1717651272569,27.458,172.67,172.66,0.3172]
[1717651273443,21.768,172.67,172.66,0.3172]
[1717651273638,27.458,172.67,172.66,0.3172]
[1717651274765,13.1968,172.67,172.66,0.3172]
[1717651274962,18.8868,172.67,172.66,0.3172]
[1717651275647,27.458,172.67,172.66,0.3172]
[1717651276371,2.1432,172.64,172.61,9.713]
[1717651276556,2.1432,172.64,172.59,8.7239]
[1717651276868,2.1432,172.64,172.6,5.69]
[1717651277767,2.1431,172.65,172.6,5.69]
[1717651278578,2.1432,172.64,172.6,5.69]
[1717651279376,2.1432,172.64,172.59,8.7239]
[1717651279547,2.1432,172.64,172.59,6.5802]
[1717651279747,2.1432,172.64,172.6,5.69]
[1717651279963,2.1432,172.64,172.6,3.19]
[1717651281279,2.1432,172.64,172.59,8.7239]
[1717651281573,2.1432,172.64,172.6,5.69]
[1717651282079,2.1432,172.64,172.59,8.7239]
[1717651282272,2.1432,172.64,172.59,14.4139]
[1717651282450,2.1431,172.65,172.59,14.4139]
[1717651283684,2.1431,172.65,172.59,8.7239]
[1717651283982,2.1431,172.65,172.6,5.69]
[1717651284779,2.1431,172.65,172.59,8.7239]
[1717651284957,2.1431,172.65,172.6,5.69]
[1717651285458,2.1431,172.65,172.6,7.8336]
[1717651286663,2.1431,172.65,172.6,2.1436]
[1717651286876,2.1431,172.65,172.6,7.8336]
[1717651287077,2.1431,172.65,172.6,5.69]
[1717651287778,2.1431,172.65,172.6,7.8336]
[1717651290179,2.1431,172.65,172.6,2.1436]
[1717651290385,2.1431,172.65,172.6,7.8336]
[1717651290563,2.1431,172.65,172.59,17.41882433]
[1717651290762,2.1432,172.64,172.6,5.69]
[1717651290965,2.1432,172.64,172.59,8.7239]
[1717651291163,2.1432,172.64,172.6,5.69]
[1717651291880,2.1431,172.65,172.6,2.1436]
[1717651292081,2.1431,172.65,172.6,7.8336]
[1717651292259,2.1432,172.64,172.6,5.69]
[1717651292460,2.1433,172.63,172.59,8.69492433]
[1717651292774,2.1434,172.62,172.58,8.71992433]
[1717651293164,2.1434,172.62,172.58,14.46992433]
[1717651294078,2.1433,172.63,172.58,16.61382433]
[1717651294388,2.1433,172.63,172.58,10.86382433]
[1717651294681,2.1433,172.63,172.58,16.61382433]
[1717651295686,2.3132,172.64,172.6,5.75]
[1717651296184,2.1432,172.64,172.6,5.75]
[1717651296493,2.143,172.66,172.62,5.75]
[1717651296791,2.143,172.66,172.63,5.75]
[1717651297478,2.143,172.65,172.63,5.75]
[1717651297657,19.2844,172.68,172.63,5.75]
[1717651297863,2.143,172.65,172.63,5.75]
[1717651299165,2.143,172.65,172.6,2.1436]
[1717651299474,2.143,172.65,172.63,5.75]
[1717651300088,2.143,172.65,172.62,5.75]
[1717651300392,2.143,172.65,172.63,5.75]
[1717651300682,2.1432,172.64,172.59,10.83834967]
[1717651300988,2.1432,172.64,172.61,5.75]
[1717651301987,2.1432,172.64,172.59,10.83830561]
[1717651302165,2.1434,172.62,172.59,8.69460561]
[1717651302371,2.1433,172.63,172.59,5.75]
[1717651302672,2.1433,172.63,172.6,5.75]
[1717651302990,2.1432,172.64,172.6,5.75]
[1717651303168,2.1432,172.64,172.59,2.1438]
[1717651303575,0.17,172.65,172.6,5.75]
[1717651303776,2.1432,172.64,172.6,5.75]
[1717651307892,2.1432,172.64,172.59,2.1438]
[1717651308190,2.1432,172.64,172.6,5.75]
[1717651308779,2.1435,172.61,172.58,8.71960561]
[1717651308976,2.1435,172.61,172.58,0.025]
[1717651309975,2.1435,172.62,172.58,0.025]
[1717651310174,2.1434,172.62,172.58,0.025]
[1717651310485,2.1435,172.61,172.58,0.025]
[1717651311394,2.1435,172.62,172.58,0.025]
[1717651313978,8.2333,172.63,172.58,2.1688]
[1717651314478,2.4833,172.63,172.58,7.9188]
[1717651314693,2.3133,172.63,172.58,7.9188]
[1717651315371,2.3133,172.63,172.59,5.75]
[1717651315771,2.1433,172.63,172.59,5.75]
[1717651316385,2.1433,172.63,172.58,2.1688]
[1717651316592,2.1433,172.63,172.59,5.75]
[1717651316987,2.1432,172.64,172.59,7.8937]
[1717651317179,2.1433,172.63,172.59,7.8937]
[1717651317674,2.1433,172.63,172.59,5.75]
[1717651318797,2.1433,172.63,172.58,10.863878]
[1717651318970,2.1433,172.63,172.59,5.75]
[1717651319170,2.1433,172.63,172.58,10.863878]
[1717651319375,2.1433,172.63,172.59,5.75]
[1717651320400,2.1433,172.63,172.6,5.75]
[1717651320909,2.1432,172.64,172.6,5.75]
[1717651321416,2.1432,172.64,172.61,5.75]
[1717651321582,2.1432,172.64,172.59,2.1437]
[1717651321781,2.1432,172.64,172.61,5.75]
[1717651322101,2.1433,172.63,172.59,8.4859]
[1717651322307,2.1433,172.63,172.61,5.75]
[1717651322803,2.143,172.65,172.6,8.4858]
[1717651323310,2.143,172.65,172.62,5.75]
[1717651324290,2.143,172.65,172.6,17.180878]
[1717651324486,2.1431,172.64,172.62,5.75]
[1717651324985,2.1431,172.65,172.62,5.75]
[1717651328097,2.1432,172.64,172.62,5.75]
[1717651328680,2.143,172.65,172.62,5.75]
[1717651329503,2.1432,172.64,172.61,5.75]
[1717651332325,2.1431,172.65,172.61,5.75]
[1717651332927,2.1431,172.65,172.6,2.1436]
[1717651333130,2.1431,172.64,172.61,5.75]
[1717651333319,2.1431,172.65,172.61,5.75]
[1717651335334,2.1431,172.65,172.6,2.1436]
[1717651335636,2.1431,172.64,172.6,2.1436]
[1717651335934,2.1437,172.6,172.58,0.025]
[1717651336444,10.0368,172.62,172.58,0.025]
[1717651336606,2.1436,172.61,172.58,5.775]
[1717651336806,2.1434,172.63,172.6,5.75]
[1717651337007,2.1432,172.64,172.6,5.75]
[1717651337310,2.1434,172.62,172.6,5.75]
[1717651337942,2.1433,172.63,172.6,5.75]
[1717651338847,2.1432,172.64,172.59,7.8937]
[1717651339046,2.1432,172.64,172.59,2.1437]
[1717651339361,2.1432,172.64,172.6,5.75]
[1717651340256,2.1433,172.63,172.6,5.75]
[1717651340448,2.1433,172.63,172.58,2.1688]
[1717651340762,2.1433,172.63,172.59,5.75]
[1717651341183,2.1434,172.62,172.59,5.75]
[1717651341552,2.1433,172.63,172.59,5.75]
[1717651344037,2.1434,172.62,172.59,5.75]
[1717651344270,2.1433,172.63,172.59,5.75]
[1717651346368,2.1434,172.62,172.59,5.75]